bitfinex/quotes_BTCUSD_20260308
["timestamp","ask_amount","ask_price","bid_price","bid_amount"]
[1773013606303,0.25743667,66109.0,66100.0,0.00152]
[1773013606460,0.25743667,66109.0,66095.0,0.07604475]
[1773013606655,0.25743667,66109.0,66096.0,0.00152]
[1773013607237,0.25743667,66109.0,66095.0,0.00039614]
[1773013607238,0.02200643,66108.0,66095.0,0.00039614]
[1773013607368,0.25743667,66101.0,66080.0,0.07589572]
[1773013607564,0.25743667,66097.0,66080.0,0.07589572]
[1773013607804,0.27929096,66097.0,66081.0,0.00152]
[1773013608007,0.27913882,66097.0,66081.0,0.00152]
[1773013608375,0.25743667,66095.0,66082.0,0.00152]
[1773013608546,0.25743667,66095.0,66080.0,0.07589572]
[1773013608746,0.25743667,66095.0,66082.0,0.00152]
[1773013609188,0.25743667,66095.0,66080.0,0.07589572]
[1773013609362,0.25743667,66095.0,66083.0,0.00152]
[1773013609702,0.25743667,66095.0,66084.0,0.00152]
[1773013610164,0.07565212,66092.0,66074.0,0.07567273]
[1773013610368,0.2794431,66090.0,66074.0,0.07567273]
[1773013610536,0.07565212,66092.0,66076.0,0.27824406]
[1773013610713,0.07564454,66099.0,66078.0,0.27824406]
[1773013610924,0.00152,66097.0,66081.0,0.02343799]
[1773013611108,0.07564454,66099.0,66084.0,0.27824406]
[1773013611330,0.07564454,66099.0,66086.0,0.30168205]
[1773013611620,0.07564454,66099.0,66087.0,0.00152]
[1773013611826,0.00039606,66101.0,66089.0,0.02343799]
[1773013612087,0.00023,66104.0,66092.0,0.27824406]
[1773013612243,0.07586861,66104.0,66094.0,0.37733188]
[1773013612768,0.07586861,66104.0,66094.0,0.07564983]
[1773013612971,0.02200643,66102.0,66088.0,0.00152]
[1773013613191,0.2794431,66101.0,66081.0,0.07566461]
[1773013613398,0.2794431,66101.0,66082.0,0.00152]
[1773013613597,0.00039606,66102.0,66083.0,0.30168205]
[1773013613791,0.00039606,66102.0,66085.0,0.27824406]
[1773013613943,0.00039606,66102.0,66087.0,0.27824406]
[1773013614144,0.00039606,66102.0,66088.0,0.00152]
[1773013614924,0.00039606,66102.0,66090.0,0.27824406]
[1773013615123,0.00023,66104.0,66089.0,0.07565555]
[1773013615124,0.00023,66104.0,66094.0,0.27824406]
[1773013615296,0.0758684,66104.0,66096.0,0.27824406]
[1773013615464,0.0758684,66104.0,66095.0,0.02495799]
[1773013615465,0.0758684,66104.0,66095.0,0.00152]
[1773013615662,0.0758684,66104.0,66081.0,0.07586463]
[1773013615663,0.0773884,66104.0,66081.0,0.07586463]
[1773013615868,0.25743667,66101.0,66082.0,0.00152]
[1773013616090,0.25743667,66099.0,66083.0,0.00152]
[1773013616352,0.25743667,66099.0,66081.0,0.0758642]
[1773013616541,0.25743667,66099.0,66084.0,0.00152]
[1773013616740,0.07564525,66098.0,66084.0,0.00152]
[1773013616917,0.07564525,66098.0,66084.0,0.07718085]
[1773013619357,0.07564525,66098.0,66085.0,0.00152]
[1773013619964,0.07564525,66098.0,66081.0,0.0002]
[1773013620118,0.2794431,66096.0,66086.0,0.00152]
[1773013620309,0.2794431,66096.0,66081.0,0.0002]
[1773013620310,0.2794431,66096.0,66087.0,0.00152]
[1773013620718,0.25743667,66094.0,66082.0,0.00152]
[1773013620919,0.02200643,66091.0,66081.0,0.00172]
[1773013621125,0.07565441,66090.0,66081.0,0.00172]
[1773013621432,0.07565441,66090.0,66081.0,0.07738459]
[1773013621627,0.07564983,66095.0,66081.0,0.07738459]
[1773013621848,0.07564866,66096.0,66085.0,0.27824406]
[1773013622044,0.07564866,66096.0,66085.0,0.30168205]
[1773013622240,0.002,66090.0,66086.0,0.02343799]
[1773013622493,0.002,66090.0,66087.0,0.02495799]
[1773013622707,0.00544,66118.0,66088.0,0.02343799]
[1773013622878,0.00544,66118.0,66092.0,0.02343799]
[1773013623074,0.00544,66118.0,66088.0,0.00039606]
[1773013623075,0.00544,66118.0,66097.0,0.02343799]
[1773013623277,0.00069971,66123.0,66097.0,0.02343799]
[1773013623278,0.00069971,66123.0,66099.0,0.0756441]
[1773013623477,0.07631651,66123.0,66103.0,0.27007485]
[1773013623682,0.00069971,66123.0,66106.0,0.02343799]
[1773013623861,0.07559904,66139.0,66107.0,0.00152]
[1773013624068,0.00022001,66141.0,66110.0,0.02343799]
[1773013624275,0.00022001,66141.0,66114.0,0.02343799]
[1773013624455,0.07559859,66139.0,66117.0,0.27007485]
[1773013624661,0.07582077,66137.0,66119.0,0.27007485]
[1773013624861,0.07582077,66137.0,66104.0,0.18179]
[1773013624862,0.00022001,66137.0,66121.0,0.27007485]
[1773013625098,0.00022001,66137.0,66123.0,0.27007485]
[1773013625315,0.00033885,66137.0,66124.0,0.07713551]
[1773013625529,0.00033885,66137.0,66125.0,0.00152]
[1773013625973,0.00033885,66137.0,66125.0,0.27159485]
[1773013626153,0.07581641,66141.0,66127.0,0.27007485]
[1773013626364,0.07581641,66141.0,66127.0,0.00011884]
[1773013626564,0.2972811,66140.0,66127.0,0.00011884]
[1773013626767,0.2988011,66140.0,66127.0,0.00163884]
[1773013626967,0.00152,66140.0,66127.0,0.00011884]
[1773013627168,0.07559836,66139.0,66128.0,0.07712996]
[1773013627397,0.07559836,66139.0,66127.0,0.00011884]
[1773013627549,0.07559836,66139.0,66128.0,0.00152]
[1773013627766,0.25845744,66138.0,66127.0,0.00011884]
[1773013628151,0.25845744,66138.0,66127.0,0.00163884]
[1773013628568,0.25845744,66138.0,66115.0,0.0756252]
[1773013628746,0.25845744,66134.0,66116.0,0.00152]
[1773013628948,0.25997744,66134.0,66116.0,0.00152]
[1773013629124,0.25997744,66134.0,66115.0,0.0756252]
[1773013629125,0.25845744,66132.0,66115.0,0.0756252]
[1773013629325,0.0756075,66131.0,66116.0,0.00152]
[1773013629526,0.0756075,66131.0,66117.0,0.00152]
[1773013630113,0.0756075,66132.0,66117.0,0.00152]
[1773013630312,0.07712486,66134.0,66120.0,0.27279736]
[1773013630435,0.07712486,66134.0,66117.0,0.00152]
[1773013630640,0.25845744,66133.0,66113.0,0.0756258]
[1773013630837,0.25845744,66133.0,66112.0,0.07562923]
[1773013631091,0.28013255,66131.0,66112.0,0.07562923]
[1773013631254,0.28035256,66131.0,66113.0,0.00152]
[1773013631657,0.07560864,66130.0,66114.0,0.00152]
[1773013631896,0.02167511,66128.0,66104.0,0.07586787]
[1773013632126,0.25845744,66122.0,66104.0,0.00023]
[1773013632263,0.25845744,66118.0,66104.0,0.00023]
[1773013632470,0.02167511,66119.0,66104.0,0.00023]
[1773013632471,0.25845744,66116.0,66104.0,0.00023]
[1773013633341,0.25845744,66116.0,66104.0,0.07586778]
[1773013633463,0.00152,66117.0,66104.0,0.00023]
[1773013633664,0.0756258,66115.0,66099.0,0.00152]
[1773013633905,0.0756258,66115.0,66099.0,0.00163878]
[1773013634089,0.25845744,66112.0,66099.0,0.00011878]
[1773013634289,0.28013255,66110.0,66095.0,0.0002]
[1773013634516,0.25845744,66108.0,66092.0,0.00544]
[1773013634718,0.00011869,66110.0,66093.0,0.2945057]
[1773013634958,0.00011869,66110.0,66093.0,0.07717097]
[1773013635116,0.00011869,66110.0,66093.0,0.07565097]
[1773013635314,0.00011869,66110.0,66094.0,0.00152]
[1773013636038,0.07575021,66110.0,66094.0,0.00152]
[1773013636446,0.07575021,66110.0,66098.0,0.02170834]
[1773013636447,0.00011869,66110.0,66098.0,0.02170834]
[1773013636682,0.00011869,66110.0,66099.0,0.27279736]
[1773013636885,0.00011869,66110.0,66100.0,0.00152]
[1773013637096,0.00011869,66110.0,66092.0,0.00544]
[1773013637097,0.25845744,66109.0,66092.0,0.00544]
[1773013637221,0.25845744,66107.0,66094.0,0.00152]
[1773013637423,0.25845744,66107.0,66092.0,0.00544]
[1773013637623,0.25845744,66107.0,66093.0,0.00152]
[1773013638163,0.07563609,66106.0,66093.0,0.00152]
[1773013638975,0.07563526,66107.0,66093.0,0.00152]
[1773013639242,0.07563526,66107.0,66094.0,0.27279736]
[1773013639869,0.07563526,66107.0,66093.0,0.00152]
[1773013640085,0.3340927,66107.0,66093.0,0.00152]
[1773013640235,0.3340927,66107.0,66093.0,0.0771709]
[1773013640863,0.18301838,66103.0,66088.0,0.0002]
[1773013641229,0.25845744,66101.0,66088.0,0.0002]
[1773013641875,0.02167511,66098.0,66073.0,0.07567386]
[1773013642082,0.02167511,66094.0,66074.0,0.07587269]
[1773013642281,0.25845744,66091.0,66075.0,0.00152]
[1773013642699,0.00152,66092.0,66076.0,0.27279736]
[1773013642913,0.07564727,66097.0,66080.0,0.27279736]
[1773013643124,0.0756401,66103.0,66084.0,0.27279736]
[1773013643335,0.0756401,66103.0,66087.0,0.02170834]
[1773013643545,0.0756401,66103.0,66088.0,0.00152]
[1773013644296,0.0756401,66103.0,66089.0,0.07565555]
[1773013644499,0.0756401,66103.0,66086.0,0.07565898]
[1773013644668,0.02167511,66096.0,66074.0,0.07587224]
[1773013644873,0.00152,66095.0,66075.0,0.00152]
[1773013645081,0.00152,66095.0,66078.0,0.27279736]
[1773013645295,0.00152,66094.0,66078.0,0.2945057]
[1773013645538,0.00152,66095.0,66078.0,0.2945057]
[1773013645909,0.25845744,66094.0,66074.0,0.0002]
[1773013646176,0.25845744,66089.0,66074.0,0.0002]
[1773013646377,0.02167511,66085.0,66067.0,0.00016]
[1773013646568,0.25845744,66082.0,66067.0,0.00016]
[1773013646867,0.25997744,66081.0,66067.0,0.00016]
[1773013647307,0.25997744,66081.0,66067.0,0.00055606]
[1773013648422,0.07566585,66080.0,66067.0,0.0762361]
[1773013648591,0.00152,66084.0,66071.0,0.0002]
[1773013648765,0.00152,66084.0,66072.0,0.27279736]
[1773013649299,0.001,66081.0,66072.0,0.27279736]
[1773013649745,0.00152,66084.0,66072.0,0.27279736]
[1773013650153,0.00152,66084.0,66071.0,0.0002]
[1773013650673,0.07566242,66083.0,66071.0,0.07587616]
[1773013651410,0.07566242,66083.0,66071.0,0.34867352]
[1773013652256,0.07566242,66083.0,66071.0,0.07587616]
[1773013653048,0.02865659,66085.0,66071.0,0.07587616]
[1773013653255,0.07566242,66083.0,66071.0,0.07739616]
[1773013655061,0.07566242,66084.0,66071.0,0.07587594]
[1773013655242,0.07566242,66084.0,66071.0,0.0758756]
[1773013655450,0.07566242,66084.0,66071.0,0.0773956]
[1773013656057,0.07566242,66084.0,66071.0,0.00172]
[1773013656256,0.26142692,66081.0,66067.0,0.00207606]
[1773013656457,0.28310203,66080.0,66067.0,0.00207606]
[1773013656841,0.07566242,66084.0,66069.0,0.02170834]
[1773013657046,0.07566242,66084.0,66070.0,0.3443412]
[1773013657450,0.07566242,66084.0,66070.0,0.2686642]
[1773013657879,0.07566242,66084.0,66070.0,0.34434139]
[1773013659463,0.07566242,66084.0,66070.0,0.0002862]
[1773013659676,0.36067808,66084.0,66070.0,0.0002862]
[1773013659877,0.36067808,66084.0,66050.0,0.2686642]
[1773013659878,0.26142692,66079.0,66050.0,0.2686642]
[1773013660127,0.18301838,66080.0,66050.0,0.2686642]
[1773013660128,0.02358874,66070.0,66057.0,0.00031816]
[1773013660293,0.00152,66069.0,66057.0,0.00031816]
[1773013661154,0.0756796,66068.0,66057.0,0.09945247]
[1773013661367,0.07719864,66070.0,66058.0,0.29210684]
[1773013661540,0.0756796,66069.0,66058.0,0.2686642]
[1773013661742,0.0756796,66069.0,66059.0,0.29210684]
[1773013663183,0.26142692,66077.0,66059.0,0.29210684]
[1773013663184,0.00566001,66092.0,66061.0,0.2686642]
[1773013663330,0.07588112,66085.0,66065.0,0.02344264]
[1773013663536,0.07588112,66085.0,66068.0,0.2686642]
[1773013663757,0.02358874,66081.0,66069.0,0.00152]
[1773013663957,0.07588112,66085.0,66070.0,0.00156]
[1773013664158,0.09946986,66085.0,66066.0,0.2686642]
[1773013664318,0.09946986,66085.0,66070.0,0.00156]
[1773013665134,0.36089678,66085.0,66067.0,0.00156]
[1773013665336,0.09946986,66085.0,66069.0,0.29210684]
[1773013665953,0.26142692,66084.0,66060.0,0.29210684]
[1773013666153,0.07588112,66085.0,66060.0,0.29210684]
[1773013666154,0.26142692,66081.0,66060.0,0.29210684]
[1773013666332,0.02358874,66078.0,66061.0,0.00156]
[1773013666555,0.26142692,66078.0,66056.0,0.2693642]
[1773013666759,0.02358874,66075.0,66059.0,0.00156]
[1773013666975,0.00156,66074.0,66059.0,0.00156]
[1773013667191,0.07567387,66073.0,66060.0,0.07568876]
[1773013667728,0.07567387,66073.0,66061.0,0.00156]
[1773013667958,0.07567387,66076.0,66060.0,0.07568876]
[1773013668161,0.07722821,66078.0,66064.0,0.2686642]
[1773013668357,0.07722821,66078.0,66066.0,0.02344264]
[1773013668577,0.00156,66078.0,66067.0,0.2686642]
[1773013668778,0.07722548,66081.0,66070.0,0.02344264]
[1773013668997,0.07722548,66081.0,66061.0,0.32580463]
[1773013668998,0.00156,66087.0,66074.0,0.02344264]
[1773013669183,0.03822673,66093.0,66079.0,0.02344264]
[1773013669696,0.03822673,66093.0,66077.0,0.07566929]
[1773013669697,0.07565107,66093.0,66083.0,0.02344264]
[1773013669893,0.00022001,66099.0,66087.0,0.02344264]
[1773013669894,0.0758647,66099.0,66087.0,0.02344264]
[1773013670217,0.0758647,66099.0,66088.0,0.02344264]
[1773013670353,0.07626059,66099.0,66067.0,0.07568074]
[1773013670563,0.26142692,66089.0,66069.0,0.02344264]
[1773013670747,0.26142692,66089.0,66067.0,0.07568074]
[1773013670748,0.00156,66088.0,66071.0,0.02344264]
[1773013670951,0.00156,66087.0,66074.0,0.2686642]
[1773013671148,0.00022001,66085.0,66076.0,0.34433464]
[1773013671381,0.00022001,66085.0,66076.0,0.00156]
[1773013671687,0.00022001,66085.0,66073.0,0.00156]
[1773013671886,0.00022001,66085.0,66072.0,0.29210684]
[1773013672089,0.00022001,66085.0,66072.0,0.02500264]
[1773013672292,0.26164693,66085.0,66066.0,0.08112161]
[1773013672461,0.26164693,66085.0,66067.0,0.00156]
[1773013673012,0.26142692,66083.0,66066.0,0.00544]
[1773013673163,0.07566585,66080.0,66066.0,0.00544]
[1773013673360,0.22560548,66080.0,66066.0,0.08112153]
[1773013673571,0.07566585,66080.0,66068.0,0.02344264]
[1773013674079,0.2690384,66079.0,66064.0,0.00156]
[1773013674281,0.14993963,66078.0,66060.0,0.07568791]
[1773013674505,0.00751794,66076.0,66057.0,0.0002]
[1773013674704,0.27050486,66075.0,66057.0,1e-08]
[1773013674877,0.26142692,66073.0,66057.0,1e-08]
[1773013675291,0.26142692,66073.0,66057.0,0.00011817]
[1773013675292,0.22571655,66072.0,66057.0,0.00011817]
[1773013675620,0.26142692,66069.0,66054.0,0.0002]
[1773013675800,0.150041,66068.0,66054.0,0.0002]
[1773013675999,0.00011868,66069.0,66055.0,0.07602121]
[1773013676404,0.00011868,66069.0,66056.0,0.00156]
[1773013676804,0.00156,66068.0,66055.0,0.10102339]
[1773013676982,0.00156,66068.0,66056.0,0.02344264]
[1773013677181,0.00156,66068.0,66056.0,0.29210684]
[1773013677432,0.07568074,66067.0,66056.0,0.29210684]
[1773013678011,0.07567044,66077.0,66057.0,0.02344264]
[1773013678214,0.07567044,66076.0,66061.0,0.02344264]
[1773013678411,0.07567044,66076.0,66064.0,0.2686642]
[1773013678706,0.07567044,66076.0,66062.0,0.00156]
[1773013678707,0.07563044,66076.0,66069.0,0.02344264]
[1773013679107,0.07563044,66076.0,66067.0,0.00156]
[1773013679305,0.07567044,66078.0,66067.0,0.2702242]
[1773013679875,0.077457,66080.0,66067.0,0.2702242]
[1773013679876,0.07589612,66080.0,66070.0,0.02344264]
[1773013680080,0.07589612,66080.0,66049.0,0.07570022]
[1773013680222,0.33732304,66080.0,66060.0,0.2686642]
[1773013680407,0.07589612,66080.0,66061.0,0.29210684]
[1773013680607,0.07589612,66080.0,66062.0,0.02344264]
[1773013680832,0.07589612,66080.0,66064.0,0.02344264]
[1773013681031,0.07589612,66080.0,66065.0,0.2702242]
[1773013681691,0.07589612,66080.0,66057.0,0.07600973]
[1773013681692,0.02358874,66078.0,66062.0,0.00156]
[1773013681824,0.26298692,66077.0,66058.0,0.07569105]
[1773013682012,0.28657566,66077.0,66060.0,0.00156]
[1773013682418,0.00156,66077.0,66061.0,0.02344264]
[1773013682647,0.00156,66079.0,66064.0,0.2686642]
[1773013682967,0.00156,66079.0,66068.0,0.27625861]
[1773013683127,0.00156,66078.0,66068.0,0.27625861]
[1773013683667,0.07745612,66080.0,66068.0,0.27625861]
[1773013683849,0.07745612,66080.0,66067.0,0.02500264]
[1773013684641,0.00156,66079.0,66062.0,0.07568596]
[1773013684842,0.00156,66079.0,66055.0,0.0003274]
[1773013684843,0.18301838,66072.0,66055.0,0.0003274]
[1773013685050,0.29340537,66069.0,66055.0,0.0018874]
[1773013685260,0.29340537,66069.0,66055.0,0.0003274]
[1773013685497,0.07567731,66070.0,66055.0,0.07602177]
[1773013685949,0.07567731,66070.0,66056.0,0.27625861]
[1773013686329,0.07567731,66070.0,66058.0,0.27625861]
[1773013686551,0.07567731,66070.0,66058.0,0.30126125]
[1773013686775,0.07567731,66070.0,66058.0,0.29970125]
[1773013686992,0.07567731,66070.0,66059.0,0.00156]
[1773013687835,0.07567731,66070.0,66057.0,0.0002]
[1773013688035,0.25688545,66069.0,66057.0,0.0002]
[1773013688197,0.09959789,66070.0,66057.0,0.0002]
[1773013688601,0.07567731,66070.0,66057.0,0.07589175]
[1773013689085,0.07567731,66070.0,66057.0,0.33948507]
[1773013689293,0.07567731,66070.0,66058.0,0.26359332]
[1773013689509,0.07567731,66070.0,66060.0,0.26359332]
[1773013689921,0.07567731,66070.0,66059.0,0.02241842]
[1773013690130,0.07567731,66070.0,66057.0,0.0002]
[1773013690392,0.02242699,66069.0,66057.0,0.0002]
[1773013690599,0.27931244,66069.0,66057.0,0.0002]
[1773013690761,0.02242699,66069.0,66057.0,0.0002]
[1773013690961,0.07567731,66070.0,66057.0,0.0002]
[1773013693075,0.07267731,66070.0,66057.0,0.0002]
[1773013696049,0.07267731,66070.0,66051.0,0.07569884]
[1773013696050,0.25688545,66067.0,66043.0,0.00156]
[1773013696260,0.25688545,66067.0,66039.0,0.26359332]
[1773013696261,0.25688545,66057.0,66039.0,0.26359332]
[1773013696466,0.28087244,66056.0,66040.0,0.007]
[1773013696676,0.15003474,66055.0,66040.0,0.007]
[1773013697214,0.28087244,66056.0,66040.0,0.007]
[1773013697783,0.02996664,66055.0,66040.0,0.007]
[1773013698317,0.07569564,66054.0,66040.0,0.007]
[1773013698605,0.02996664,66053.0,66040.0,0.007]
[1773013699361,0.02996664,66053.0,66040.0,0.00696]
[1773013699764,0.02996664,66053.0,66040.0,0.0054]
[1773013700316,0.07569793,66052.0,66040.0,0.0054]
[1773013700517,0.0244849,66051.0,66040.0,0.0054]
[1773013701134,0.07569793,66052.0,66041.0,0.26359332]
[1773013701329,0.10018283,66052.0,66041.0,0.26359332]
[1773013701507,0.0244849,66051.0,66040.0,0.0054]
[1773013702264,0.07578188,66052.0,66040.0,0.08111116]
[1773013702403,0.07578188,66052.0,66041.0,0.26359332]
[1773013702404,8.395e-05,66052.0,66041.0,0.26359332]
[1773013703192,0.07569411,66056.0,66040.0,0.08131116]
[1773013703398,0.07569411,66056.0,66041.0,0.26359332]
[1773013703592,0.07569335,66058.0,66040.0,0.08139511]
[1773013703967,0.07568384,66065.0,66041.0,0.26359332]
[1773013704101,0.00156,66070.0,66041.0,0.26359332]
[1773013704300,0.07567845,66069.0,66044.0,0.26359332]
[1773013704518,0.024292,66059.0,66044.0,0.26359332]
[1773013704747,0.18333698,66060.0,66040.0,0.00568395]
[1773013704748,0.024292,66058.0,66040.0,0.00568395]
[1773013704945,0.25688545,66055.0,66041.0,0.00156]
[1773013705157,0.18333698,66051.0,66037.0,0.0003274]
[1773013705357,0.024292,66050.0,66037.0,0.07604214]
[1773013705562,0.024292,66050.0,66038.0,0.26359332]
[1773013706013,0.00011887,66051.0,66038.0,0.26359332]
[1773013706174,0.02471804,66051.0,66038.0,0.26359332]
[1773013706349,0.02459917,66049.0,66039.0,0.00156]
[1773013706550,0.02459917,66049.0,66037.0,0.0003274]
[1773013706850,0.51592265,66050.0,66032.0,0.00179]
[1773013706851,0.02459917,66046.0,66032.0,0.00179]
[1773013707177,0.02459917,66046.0,66032.0,0.07750972]
[1773013707376,0.02459917,66046.0,66032.0,0.00023]
[1773013707581,0.02459917,66045.0,66032.0,0.00023]
[1773013707876,0.02459917,66045.0,66032.0,0.07595066]
[1773013708086,0.02459917,66045.0,66032.0,0.07594971]
[1773013708296,0.0757071,66044.0,66032.0,0.07594971]
[1773013708694,0.10041362,66044.0,66032.0,0.00023]
[1773013709068,0.10041362,66044.0,66032.0,0.0759508]
[1773013709268,0.0757071,66046.0,66035.0,0.26359332]
[1773013709897,0.0757071,66046.0,66038.0,0.0002]
[1773013710621,0.25688545,66045.0,66032.0,0.00179]
[1773013710821,0.02543386,66044.0,66032.0,0.00179]
[1773013711273,0.02543386,66044.0,66032.0,0.07595063]
[1773013711584,0.02543386,66044.0,66032.0,0.00179]
[1773013711790,0.02543386,66044.0,66032.0,0.07595065]
[1773013711999,0.02543386,66044.0,66032.0,0.00179]
[1773013712948,0.07570825,66043.0,66032.0,0.00179]
[1773013714309,0.02690727,66042.0,66032.0,0.00023]
[1773013715425,0.07571054,66041.0,66032.0,0.00023]
[1773013716549,0.02688662,66040.0,66032.0,0.00023]
[1773013716886,0.02688662,66037.0,66019.0,1e-08]
[1773013717137,0.02688662,66028.0,66019.0,1e-08]
[1773013717335,0.02688662,66026.0,66019.0,1e-08]
[1773013717561,0.02688662,66024.0,66019.0,1e-08]
[1773013717934,0.02682232,66023.0,66019.0,1e-08]
[1773013718165,0.02682232,66021.0,66014.0,1e-08]
[1773013718368,0.02682232,66021.0,66010.0,0.00013]
[1773013718369,0.02694111,66021.0,66010.0,0.00013]
[1773013718939,0.02694111,66021.0,66010.0,0.07587602]
[1773013719449,0.07573462,66020.0,66019.0,0.0002]
[1773013719673,0.00011879,66021.0,66019.0,0.0002]
[1773013719993,0.02682057,66023.0,66010.0,0.00013]
[1773013720140,0.00156,66024.0,66010.0,0.00052565]
[1773013720141,0.25923746,66022.0,66010.0,0.00052565]
[1773013720339,0.00156,66024.0,66010.0,0.00052565]
[1773013720340,0.02682057,66020.0,66010.0,0.00052565]
[1773013720540,0.02682057,66018.0,66010.0,0.00052565]
[1773013720941,0.02682057,66018.0,66008.0,0.0007]
[1773013721152,0.02721695,66018.0,66008.0,0.0007]
[1773013721557,0.02721695,66018.0,66000.0,0.01]
[1773013721558,0.25923746,66015.0,66000.0,0.01]
[1773013721760,0.05365169,66012.0,66000.0,0.01]
[1773013722187,0.05365169,66012.0,66000.0,0.08575743]
[1773013723581,0.12939664,66011.0,66000.0,0.08575743]
[1773013723782,0.12939664,66011.0,66000.0,0.01]
[1773013724352,0.07574427,66012.0,66002.0,0.26248821]
[1773013725504,0.05360776,66016.0,66001.0,0.07575642]
[1773013725505,0.07573692,66020.0,66003.0,0.07575413]
[1773013725665,0.00156,66017.0,66004.0,0.26248821]
[1773013726078,0.00156,66023.0,66004.0,0.26248821]
[1773013726316,0.00156,66023.0,66004.0,0.26288459]
[1773013726604,0.05516862,66023.0,66004.0,0.26288459]
[1773013727044,0.05360862,66018.0,66004.0,0.00039638]
[1773013727173,0.25923746,66015.0,66004.0,1e-08]
[1773013727516,0.07574265,66013.0,66004.0,1e-08]
[1773013727816,0.05516862,66012.0,66004.0,1e-08]
[1773013728531,0.07574014,66016.0,66004.0,1e-08]
[1773013728707,0.07574014,66016.0,66004.0,0.26248822]
[1773013729110,0.07573921,66018.0,66004.0,0.26248822]
[1773013729526,0.00156,66024.0,66006.0,0.26248821]
[1773013730324,0.05678589,66023.0,66005.0,0.07575183]
[1773013730519,0.05678589,66018.0,66006.0,0.00156]
[1773013730718,0.05678589,66016.0,66006.0,0.00156]
[1773013731049,0.05678589,66016.0,66004.0,0.07575261]
[1773013731347,0.05678589,66016.0,66006.0,0.00156]
[1773013731885,0.07574036,66015.0,66006.0,0.00156]
[1773013732109,0.07574036,66015.0,66006.0,0.07731056]
[1773013732300,0.07572575,66028.0,66007.0,0.26248821]
[1773013732464,0.07728769,66027.0,66007.0,0.26248821]
[1773013732626,0.0568661,66026.0,66007.0,0.26248821]
[1773013733012,0.0568661,66024.0,66007.0,0.26248821]
[1773013733934,0.07573118,66023.0,66008.0,0.3382366]
[1773013734357,0.07573118,66023.0,66009.0,0.26248821]
[1773013734567,0.00156,66022.0,66009.0,0.26248821]
[1773013735054,0.00023,66032.0,66009.0,0.33544212]
[1773013735198,0.07595116,66032.0,66010.0,0.26248821]
[1773013735907,0.07595116,66032.0,66006.0,0.07575056]
[1773013735908,0.07572315,66030.0,66013.0,0.07574265]
[1773013736080,0.13250668,66030.0,66014.0,0.26248821]
[1773013736513,0.00023,66032.0,66014.0,0.26248821]
[1773013736947,0.00156,66035.0,66014.0,0.26248821]
[1773013737193,0.00544,66040.0,66014.0,0.26248821]
[1773013737597,0.00022001,66043.0,66014.0,0.26792821]
[1773013738152,0.00022001,66043.0,66016.0,0.26248821]
[1773013738554,0.00156,66050.0,66016.0,0.26248821]
[1773013738697,0.0772611,66050.0,66016.0,0.26248821]
[1773013738901,0.00156,66050.0,66016.0,0.26248821]
[1773013739437,0.07569881,66052.0,66016.0,0.26248821]
[1773013739619,0.13403437,66052.0,66018.0,0.26248821]
[1773013739831,0.00022001,66055.0,66018.0,0.26248821]
[1773013740059,0.05673844,66053.0,66020.0,0.26248821]
[1773013740422,0.00156,66054.0,66020.0,0.26248821]
[1773013740877,0.07725573,66054.0,66020.0,0.26248821]
[1773013741230,0.00156,66054.0,66020.0,0.26348821]
[1773013741433,0.00022001,66055.0,66020.0,0.26248821]
[1773013741990,0.00022001,66055.0,66021.0,0.07573347]
[1773013742212,0.00178001,66062.0,66033.0,0.33544212]
[1773013742414,0.00022001,66062.0,66034.0,0.26404821]
[1773013742842,0.00022001,66069.0,66041.0,0.26506874]
[1773013743027,0.00022001,66069.0,66040.0,0.00544]
[1773013743028,0.00178001,66079.0,66043.0,0.26506874]
[1773013743345,0.00061713,66079.0,66044.0,0.26506874]
[1773013743752,0.00022001,66085.0,66057.0,0.26506874]
[1773013743969,0.07721556,66089.0,66056.0,0.00023]
[1773013743970,0.01073265,66092.0,66059.0,0.31076463]
[1773013744132,0.08638491,66092.0,66062.0,0.26506874]
[1773013744548,0.27440389,66091.0,66062.0,0.26506874]
[1773013744868,0.05675363,66088.0,66064.0,0.26506874]
[1773013745185,0.08638491,66092.0,66064.0,0.26506874]
[1773013745388,0.08794491,66092.0,66064.0,0.26506874]
[1773013745596,0.01073265,66092.0,66064.0,0.26506874]
[1773013746213,0.01073265,66092.0,66066.0,0.25399621]
[1773013746418,0.00022001,66093.0,66066.0,0.25399621]
[1773013746419,0.00022001,66093.0,66066.0,0.00544]
[1773013746771,0.07564121,66102.0,66067.0,0.25399621]
[1773013746916,0.13234374,66103.0,66067.0,0.25399621]
[1773013747143,0.07564013,66103.0,66067.0,0.25399621]
[1773013747349,0.00022001,66094.0,66067.0,0.25399621]
[1773013747552,0.0007,66104.0,66067.0,0.25399621]
[1773013747953,0.0007,66104.0,66069.0,0.25399621]
[1773013748353,0.0007,66104.0,66071.0,0.25399621]
[1773013748616,0.00022001,66107.0,66081.0,0.25399621]
[1773013748915,0.0004561,66112.0,66083.0,0.25399621]
[1773013749727,0.07563037,66111.0,66083.0,0.25399621]
[1773013749891,0.0566118,66107.0,66081.0,0.001]
[1773013750081,0.0566118,66105.0,66082.0,0.25555621]
[1773013750507,0.07563838,66104.0,66085.0,0.25399621]
[1773013750707,0.0566118,66103.0,66084.0,0.07566127]
[1773013750911,0.0566118,66103.0,66085.0,0.25555621]
[1773013751742,0.0566118,66103.0,66086.0,0.00156]
[1773013751942,0.0566118,66103.0,66087.0,0.00156]
[1773013752181,0.0566118,66103.0,66085.0,0.25399621]
[1773013752362,0.0566118,66103.0,66088.0,0.00156]
[1773013752737,0.05656301,66101.0,66089.0,0.00156]
[1773013752943,0.00057502,66112.0,66090.0,0.25399621]
[1773013753348,0.00057502,66112.0,66091.0,0.32977244]
[1773013753572,0.00022001,66114.0,66091.0,0.32977244]
[1773013753573,0.00022001,66114.0,66092.0,0.25399621]
[1773013753738,0.00022001,66114.0,66092.0,0.25411513]
[1773013753938,0.00544,66118.0,66093.0,0.25399621]
[1773013754264,0.08106251,66118.0,66093.0,0.25399621]
[1773013754469,0.0758449,66116.0,66092.0,0.00011892]
[1773013754701,0.0758449,66116.0,66094.0,0.07564983]
[1773013754885,0.0738449,66116.0,66094.0,0.07564983]
[1773013755067,0.00022001,66110.0,66095.0,0.25399621]
[1773013755271,0.00544,66118.0,66095.0,0.25399621]
[1773013755469,0.00022001,66117.0,66095.0,0.25399621]
[1773013755782,0.00177999,66115.0,66095.0,0.25399621]
[1773013755966,0.00177999,66115.0,66094.0,0.07564983]
[1773013755967,0.00177999,66115.0,66097.0,0.25399621]
[1773013756590,0.05646975,66114.0,66097.0,0.25399621]
[1773013756764,0.07562465,66116.0,66099.0,0.0756441]
[1773013756963,0.07562465,66116.0,66100.0,0.25399621]
[1773013757378,0.07562465,66116.0,66101.0,0.25555621]
[1773013757575,0.00022001,66117.0,66101.0,0.25555621]